fUSD/lending_fUSD_20260425
["ID","MTS","AMOUNT","RATE_DAILY","PERIOD"]
[421107087,1777051851125,-638.3,0.0001268,2]
[421107088,1777051851135,-183.41,0.0001268,2]
[421107089,1777051851144,-277.46,0.00012698,2]
[421107090,1777051851155,-1776.30922209,0.00012732,2]
[421107091,1777051851164,-200.0,0.00012732,2]
[421107092,1777051851174,-194.72792766,0.00012732,2]
[421107093,1777051851183,-225.18697532,0.00012732,2]
[421107094,1777051851193,-25000.0,0.00012738,2]
[421107095,1777051851203,-200.0,0.0001274,2]
[421107096,1777051851213,-151.0,0.0001274,2]
[421107097,1777051851223,-25000.0,0.00012747,2]
[421107098,1777051851232,-25000.0,0.00012756,2]
[421107099,1777051851241,-666.0,0.00012764,2]
[421107100,1777051851251,-300.0,0.00012764,2]
[421107101,1777051851261,-666.0,0.00012764,2]
[421107102,1777051851270,-25000.0,0.00012765,2]
[421107103,1777051851280,-25000.0,0.00012765,2]
[421107104,1777051851289,-700.0,0.0001277,2]
[421107105,1777051851299,-700.0,0.0001277,2]
[421107106,1777051851308,-25000.0,0.00012774,2]
[421107107,1777051851317,-25000.0,0.00012774,2]
[421107108,1777051851327,-25000.0,0.00012774,2]
[421107109,1777051851337,-300.0,0.00012781,2]
[421107110,1777051851347,-666.0,0.00012781,2]
[421107111,1777051851356,-25000.0,0.00012782,2]
[421107112,1777051851366,-25000.0,0.00012782,2]
[421107113,1777051851376,-25000.0,0.00012782,2]
[421107114,1777051851386,-25000.0,0.00012782,2]
[421107115,1777051851397,-300.0,0.0001279,2]
[421107116,1777051851408,-666.0,0.0001279,2]
[421107117,1777051851418,-25000.0,0.00012791,2]
[421107118,1777051851428,-25000.0,0.00012791,2]
[421107119,1777051851542,-25000.0,0.00012791,2]
[421107120,1777051851553,-25000.0,0.00012791,2]
[421107121,1777051851563,-25000.0,0.00012791,2]
[421107122,1777051851573,-666.0,0.00012799,2]
[421107123,1777051851583,-25000.0,0.000128,2]
[421107124,1777051851593,-4935.25887335,0.000128,2]
[421107125,1777051851603,-25000.0,0.000128,2]
[421107126,1777051851613,-25000.0,0.000128,2]
[421107127,1777051851623,-25000.0,0.000128,2]
[421107128,1777051851633,-25000.0,0.000128,2]
[421107129,1777051851642,-1163.0,0.00012893,2]
[421107130,1777051851652,-1574.0,0.00012893,2]
[421107131,1777051851662,-2818.0,0.00012893,2]
[421107132,1777051851672,-1117.0,0.00012928,2]
[421107133,1777051851681,-960.0,0.00012975,2]
[421107134,1777051851691,-335.0,0.00012975,2]
[421107135,1777051851701,-1267.0,0.00012975,2]
[421107136,1777051851711,-1685.0,0.00012975,2]
[421107137,1777051851720,-1761.0,0.00012975,2]
[421107138,1777051851731,-536.0,0.00012975,2]
[421107139,1777051851741,-386.0,0.00012975,2]
[421107140,1777051851751,-1848.0,0.00012975,2]
[421107141,1777051851760,-889.0,0.00012975,2]
[421107142,1777051851770,-744.0,0.00012975,2]
[421107143,1777051851779,-4401.0826241,0.00013,15]
[421107144,1777051851789,-250.0,0.00013,2]
[421107145,1777051851799,-150.0,0.00013055,2]
[421107146,1777051851809,-150.0,0.00013055,2]
[421107147,1777051851818,-150.0,0.00013055,2]
[421107148,1777051851828,-150.0,0.00013055,2]
[421107149,1777051851837,-150.0,0.00013055,2]
[421107150,1777051851846,-150.0,0.00013055,2]
[421107151,1777051851856,-150.0,0.00013055,2]
[421107152,1777051851866,-150.0,0.00013055,2]
[421107153,1777051851876,-167.0,0.00013055,2]
[421107154,1777051851886,-150.0,0.00013055,2]
[421107155,1777051851895,-179.0,0.00013055,2]
[421107156,1777051851904,-158.0,0.00013078,3]
[421107157,1777051851913,-7962.0,0.00013123,2]
[421107158,1777051851923,-191.0,0.00013167,2]
[421107159,1777051851932,-352.62974175,0.000132,2]
[421107160,1777051851941,-1336.0,0.00013265,2]
[421107161,1777051851951,-1842.03266331,0.0001328,2]
[421107162,1777051851960,-200.0,0.0001328,2]
[421107163,1777051851969,-201.93286099,0.0001328,2]
[421107164,1777051851979,-233.51889341,0.0001328,2]
[421107165,1777051851989,-200.0,0.00013288,2]
[421107166,1777051851998,-160.95570324,0.00013288,2]
[421107167,1777051852007,-295.0,0.0001333,2]
[421107168,1777051852017,-150.0,0.00013344,2]
[421107169,1777051852026,-150.0,0.00013344,2]
[421107170,1777051852036,-150.0,0.00013344,2]
[421107171,1777051852045,-150.0,0.00013344,2]
[421107172,1777051852055,-150.0,0.00013344,2]
[421107173,1777051852065,-150.0,0.00013344,2]
[421107174,1777051852075,-150.0,0.00013344,2]
[421107175,1777051852085,-206.0,0.00013344,2]
[421107176,1777051852095,-150.0,0.00013433,2]
[421107177,1777051852105,-150.0,0.00013433,2]
[421107178,1777051852115,-150.0,0.00013433,2]
[421107179,1777051852125,-151.0,0.00013433,2]
[421107180,1777051852135,-150.0,0.00013443,2]
[421107181,1777051852145,-900.0,0.00013481,2]
[421107182,1777051852155,-900.0,0.00013481,2]
[421107183,1777051852166,-900.0,0.00013481,2]
[421107184,1777051852176,-900.0,0.00013481,2]
[421107185,1777051852187,-900.0,0.00013481,2]
[421107186,1777051852197,-900.0,0.00013481,2]
[421107187,1777051852207,-900.0,0.00013481,2]
[421107188,1777051852216,-900.0,0.00013481,2]
[421107189,1777051852226,-900.0,0.00013481,2]
[421107190,1777051852236,-899.0,0.00013481,2]
[421107191,1777051852246,-1400.0,0.00013499,2]
[421107192,1777051852256,-1400.0,0.00013499,2]
[421107193,1777051852266,-1400.0,0.00013499,2]
[421107194,1777051852276,-1400.0,0.00013499,2]
[421107195,1777051852286,-1400.0,0.00013499,2]
[421107196,1777051852296,-1400.0,0.00013499,2]
[421107197,1777051852305,-1400.0,0.00013499,2]
[421107198,1777051852315,-1400.0,0.00013499,2]
[421107199,1777051852325,-1400.0,0.00013499,2]
[421107200,1777051852335,-1384.0,0.00013499,2]
[421107201,1777051852344,-503.0,0.000135,2]
[421107202,1777051852353,-151.24,0.00013513,2]
[421107203,1777051852363,-151.0,0.00013519,2]
[421107204,1777051852373,-250.0,0.00013558,2]
[421107205,1777051852383,-252.0,0.00013558,2]
[421107206,1777051852392,-1117.0,0.00013609,2]
[421107207,1777051852402,-171.15,0.00013663,2]
[421107208,1777051852412,-153.26,0.00013663,2]
[421107209,1777051852421,-666.0,0.00013697,2]
[421107210,1777051852431,-500.0,0.00013698,2]
[421107211,1777051852440,-500.0,0.00013698,2]
[421107212,1777051852450,-500.0,0.00013698,2]
[421107213,1777051852459,-500.0,0.00013698,2]
[421107214,1777051852470,-500.0,0.00013698,2]
[421107215,1777051852479,-500.0,0.00013698,2]
[421107216,1777051852489,-500.0,0.00013698,2]
[421107217,1777051852498,-491.37577226,0.00013698,2]
[421107218,1777051852508,-883.55,0.00013698,2]
[421107219,1777051852517,-883.55,0.00013698,2]
[421107220,1777051852526,-883.55,0.00013698,2]
[421107221,1777051852536,-883.55,0.00013698,2]
[421107222,1777051852545,-883.55,0.00013698,2]
[421107223,1777051852555,-883.55,0.00013698,2]
[421107224,1777051852565,-883.55,0.00013698,2]
[421107225,1777051852575,-883.55,0.00013698,2]
[421107226,1777051852585,-883.55,0.00013698,2]
[421107227,1777051852594,-883.55,0.00013698,2]
[421107228,1777051852604,-883.55,0.00013698,2]
[421107229,1777051852614,-883.55,0.00013698,2]
[421107230,1777051852623,-883.55,0.00013698,2]
[421107231,1777051852633,-883.55,0.00013698,2]
[421107232,1777051852642,-883.55,0.00013698,2]
[421107233,1777051852651,-883.55,0.00013698,2]
[421107234,1777051852661,-883.55,0.00013698,2]
[421107235,1777051852671,-883.55,0.00013698,2]
[421107236,1777051852681,-883.55,0.00013698,2]
[421107237,1777051852690,-883.55,0.00013698,2]
[421107238,1777051852700,-883.55,0.00013698,2]
[421107239,1777051852709,-883.55,0.00013698,2]
[421107240,1777051852719,-883.55,0.00013698,2]
[421107241,1777051852728,-883.68771416,0.00013698,2]
[421107242,1777051852738,-201.58331721,0.00013698,2]
[421107243,1777051852747,-2025.53,0.00013698,2]
[421107244,1777051852759,-2025.53,0.00013698,2]
[421107245,1777051852769,-2025.53,0.00013698,2]
[421107246,1777051852778,-2025.53,0.00013698,2]
[421107247,1777051852788,-2025.53,0.00013698,2]
[421107248,1777051852798,-2025.53,0.00013698,2]
[421107249,1777051852808,-2025.53,0.00013698,2]
[421107250,1777051852819,-2025.53,0.00013698,2]
[421107251,1777051852828,-2025.53,0.00013698,2]
[421107252,1777051852839,-2025.53,0.00013698,2]
[421107253,1777051852849,-2025.53,0.00013698,2]
[421107254,1777051852859,-2025.53,0.00013698,2]
[421107255,1777051852870,-2025.53,0.00013698,2]
[421107256,1777051852880,-2025.53,0.00013698,2]
[421107257,1777051852890,-2025.53,0.00013698,2]
[421107258,1777051852900,-2025.53,0.00013698,2]
[421107259,1777051852910,-2025.53,0.00013698,2]
[421107260,1777051852919,-2025.53,0.00013698,2]
[421107261,1777051852930,-2025.53,0.00013698,2]
[421107262,1777051852940,-2025.53,0.00013698,2]
[421107263,1777051852950,-2025.53,0.00013698,2]
[421107264,1777051852960,-2025.53,0.00013698,2]
[421107265,1777051852971,-2025.53,0.00013698,2]
[421107266,1777051852981,-2025.65337261,0.00013698,2]
[421107267,1777051852991,-500.0,0.00013698,2]
[421107268,1777051853001,-500.0,0.00013698,2]
[421107269,1777051853012,-500.0,0.00013698,2]
[421107270,1777051853022,-500.0,0.00013698,2]
[421107271,1777051853031,-500.0,0.00013698,2]
[421107272,1777051853041,-500.0,0.00013698,2]
[421107273,1777051853051,-408.52570112,0.00013698,2]
[421107274,1777051853060,-500.0,0.00013698,2]
[421107275,1777051853070,-500.0,0.00013698,2]
[421107276,1777051853079,-500.0,0.00013698,2]
[421107277,1777051853089,-500.0,0.00013698,2]
[421107278,1777051853098,-500.0,0.00013698,2]
[421107279,1777051853107,-500.0,0.00013698,2]
[421107280,1777051853117,-500.0,0.00013698,2]
[421107281,1777051853126,-500.0,0.00013698,2]
[421107282,1777051853136,-500.0,0.00013698,2]
[421107283,1777051853145,-500.0,0.00013698,2]
[421107284,1777051853154,-500.0,0.00013698,2]
[421107285,1777051853164,-500.0,0.00013698,2]
[421107286,1777051853173,-500.0,0.00013698,2]
[421107287,1777051853183,-500.0,0.00013698,2]
[421107288,1777051853193,-528.07894368,0.00013698,2]
[421107289,1777051853203,-678.39,0.00013698,2]
[421107290,1777051853212,-678.39,0.00013698,2]
[421107291,1777051853222,-678.39,0.00013698,2]
[421107292,1777051853232,-678.39,0.00013698,2]
[421107293,1777051853242,-678.39,0.00013698,2]
[421107294,1777051853252,-678.39,0.00013698,2]
[421107295,1777051853262,-678.39,0.00013698,2]
[421107296,1777051853273,-678.39,0.00013698,2]
[421107297,1777051853282,-678.39,0.00013698,2]
[421107298,1777051853292,-678.39,0.00013698,2]
[421107299,1777051853302,-678.39,0.00013698,2]
[421107300,1777051853311,-678.39,0.00013698,2]
[421107301,1777051853321,-678.39,0.00013698,2]
[421107302,1777051853330,-678.39,0.00013698,2]
[421107303,1777051853340,-678.39,0.00013698,2]
[421107304,1777051853350,-678.39,0.00013698,2]
[421107305,1777051853361,-678.39,0.00013698,2]
[421107306,1777051853372,-678.39,0.00013698,2]
[421107307,1777051853382,-678.39,0.00013698,2]
[421107308,1777051853393,-678.39,0.00013698,2]
[421107309,1777051853403,-678.39,0.00013698,2]
[421107310,1777051853414,-678.39,0.00013698,2]
[421107311,1777051853424,-678.39,0.00013698,2]
[421107312,1777051853433,-678.59602511,0.00013698,2]
[421107313,1777051853442,-500.0,0.00013698,2]
[421107314,1777051853452,-500.0,0.00013698,2]
[421107315,1777051853461,-500.0,0.00013698,2]
[421107316,1777051853471,-500.0,0.00013698,2]
[421107317,1777051853480,-500.0,0.00013698,2]
[421107318,1777051853489,-500.0,0.00013698,2]
[421107319,1777051853499,-500.0,0.00013698,2]
[421107320,1777051853508,-500.0,0.00013698,2]
[421107321,1777051853518,-500.0,0.00013698,2]
[421107322,1777051853527,-500.0,0.00013698,2]
[421107323,1777051853536,-500.0,0.00013698,2]
[421107324,1777051853545,-500.0,0.00013698,2]
[421107325,1777051853555,-500.0,0.00013698,2]
[421107326,1777051853564,-500.0,0.00013698,2]
[421107327,1777051853574,-500.0,0.00013698,2]
[421107328,1777051853583,-500.0,0.00013698,2]
[421107329,1777051853593,-500.0,0.00013698,2]
[421107330,1777051853602,-250.938324,0.00013698,2]
[421107331,1777051853611,-500.0,0.00013698,2]
[421107332,1777051853623,-500.0,0.00013698,2]
[421107333,1777051853632,-500.0,0.00013698,2]
[421107334,1777051853642,-500.0,0.00013698,2]
[421107335,1777051853651,-500.0,0.00013698,2]
[421107336,1777051853661,-500.0,0.00013698,2]
[421107337,1777051853671,-500.0,0.00013698,2]
[421107338,1777051853680,-500.0,0.00013698,2]
[421107339,1777051853689,-500.0,0.00013698,2]
[421107340,1777051853699,-500.0,0.00013698,2]
[421107341,1777051853708,-500.0,0.00013698,2]
[421107342,1777051853718,-500.0,0.00013698,2]
[421107343,1777051853727,-500.0,0.00013698,2]
[421107344,1777051853736,-500.0,0.00013698,2]
[421107345,1777051853745,-500.0,0.00013698,2]
[421107346,1777051853755,-500.0,0.00013698,2]
[421107347,1777051853765,-500.0,0.00013698,2]
[421107348,1777051853775,-500.0,0.00013698,2]
[421107349,1777051853784,-500.0,0.00013698,2]
[421107350,1777051853793,-500.0,0.00013698,2]
[421107351,1777051853803,-500.0,0.00013698,2]
[421107352,1777051853812,-500.0,0.00013698,2]
[421107353,1777051853820,-500.0,0.00013698,2]
[421107354,1777051853828,-500.0,0.00013698,2]
[421107355,1777051853838,-500.0,0.00013698,2]
[421107356,1777051853847,-325.11323221,0.00013698,2]
[421107357,1777051853857,-500.0,0.00013698,2]
[421107358,1777051853866,-209.24720219,0.00013698,2]
[421107359,1777051853876,-514.16301894,0.00013698,2]
[421107360,1777051853886,-500.0,0.00013698,2]
[421107361,1777051853895,-500.0,0.00013698,2]
[421107362,1777051853904,-500.0,0.00013698,2]
[421107363,1777051853914,-500.0,0.00013698,2]
[421107364,1777051853924,-500.0,0.00013698,2]
[421107365,1777051853934,-500.0,0.00013698,2]
[421107366,1777051853943,-500.0,0.00013698,2]
[421107367,1777051853953,-500.0,0.00013698,2]
[421107368,1777051853962,-500.0,0.00013698,2]
[421107369,1777051853972,-500.0,0.00013698,2]
[421107370,1777051853981,-455.77673057,0.00013698,2]
[421107371,1777051853991,-624.43,0.00013698,2]
[421107372,1777051854001,-624.43,0.00013698,2]
[421107373,1777051854010,-624.43,0.00013698,2]
[421107374,1777051854020,-624.43,0.00013698,2]
[421107375,1777051854030,-624.43,0.00013698,2]
[421107376,1777051854041,-624.43,0.00013698,2]
[421107377,1777051854051,-624.43,0.00013698,2]
[421107378,1777051854061,-624.43,0.00013698,2]
[421107379,1777051854071,-624.43,0.00013698,2]
[421107380,1777051854083,-624.43,0.00013698,2]
[421107381,1777051854092,-624.43,0.00013698,2]
[421107382,1777051854102,-624.43,0.00013698,2]
[421107383,1777051854113,-624.43,0.00013698,2]
[421107384,1777051854123,-624.43,0.00013698,2]
[421107385,1777051854133,-624.43,0.00013698,2]
[421107386,1777051854143,-624.43,0.00013698,2]
[421107387,1777051854154,-624.43,0.00013698,2]
[421107388,1777051854164,-624.43,0.00013698,2]
[421107389,1777051854174,-624.43,0.00013698,2]
[421107390,1777051854184,-624.43,0.00013698,2]
[421107391,1777051854194,-624.43,0.00013698,2]
[421107392,1777051854204,-624.43,0.00013698,2]
[421107393,1777051854214,-624.43,0.00013698,2]
[421107394,1777051854223,-624.59316152,0.00013698,2]
[421107395,1777051854233,-500.0,0.00013699,2]
[421107396,1777051854243,-2000.0,0.00013699,2]
[421107397,1777051854252,-2000.0,0.00013699,2]
[421107398,1777051854262,-500.0,0.00013699,2]
[421107399,1777051854272,-500.0,0.00013699,2]
[421107400,1777051854282,-500.0,0.00013699,2]
[421107401,1777051854291,-500.0,0.00013699,2]
[421107402,1777051854301,-500.0,0.00013699,2]
[421107403,1777051854311,-500.0,0.00013699,2]
[421107404,1777051854321,-9506.0,0.00013699,10]
[421107405,1777051854331,-229.63304842,0.00013699,2]
[421107406,1777051854340,-256.54529692,0.00013699,2]
[421107407,1777051854351,-154.0,0.00013699,2]
[421107408,1777051854360,-154.0,0.00013699,2]
[421107409,1777051854371,-154.0,0.00013699,2]
[421107410,1777051854380,-154.0,0.00013699,2]
[421107411,1777051854390,-154.0,0.00013699,2]
[421107412,1777051854400,-154.0,0.00013699,2]
[421107413,1777051854409,-1000.0,0.00013699,7]
[421107414,1777051854419,-350.0,0.00013699,2]
[421107415,1777051854429,-350.0,0.00013699,2]
[421107416,1777051854438,-350.0,0.00013699,2]
[421107417,1777051854448,-350.0,0.00013699,2]
[421107418,1777051854458,-350.0,0.00013699,2]
[421107419,1777051854468,-350.0,0.00013699,2]
[421107420,1777051854477,-350.0,0.00013699,2]
[421107421,1777051854488,-350.0,0.00013699,2]
[421107422,1777051854498,-350.0,0.00013699,2]
[421107423,1777051854507,-350.0,0.00013699,2]
[421107424,1777051854517,-377.0,0.00013699,2]
[421107425,1777051854527,-377.0,0.00013699,2]
[421107426,1777051854537,-377.0,0.00013699,2]
[421107427,1777051854547,-377.0,0.00013699,2]
[421107428,1777051854557,-377.0,0.00013699,2]
[421107429,1777051854566,-377.0,0.00013699,2]
[421107430,1777051854576,-377.0,0.00013699,2]
[421107431,1777051854585,-377.0,0.00013699,2]
[421107432,1777051854595,-377.0,0.00013699,2]
[421107433,1777051854604,-377.0,0.00013699,2]
[421107434,1777051854615,-377.0,0.00013699,2]
[421107435,1777051854627,-377.0,0.00013699,2]
[421107436,1777051854637,-377.0,0.00013699,2]
[421107437,1777051854647,-377.0,0.00013699,2]
[421107438,1777051854657,-282.0,0.00013699,2]
[421107439,1777051854667,-381.0,0.00013699,2]
[421107440,1777051854677,-377.0,0.00013699,2]
[421107441,1777051854687,-377.0,0.00013699,2]
[421107442,1777051854696,-377.0,0.00013699,2]
[421107443,1777051854706,-377.0,0.00013699,2]
[421107444,1777051854716,-377.0,0.00013699,2]
[421107445,1777051854725,-377.0,0.00013699,2]
[421107446,1777051854734,-377.0,0.00013699,2]
[421107447,1777051854744,-377.0,0.00013699,2]
[421107448,1777051854756,-377.0,0.00013699,2]
[421107449,1777051854766,-377.0,0.00013699,2]
[421107450,1777051854776,-377.0,0.00013699,2]
[421107451,1777051854785,-172.17296553,0.00013699,2]
[421107452,1777051854795,-377.0,0.00013699,2]
[421107453,1777051854805,-377.0,0.00013699,2]
[421107454,1777051854815,-377.0,0.00013699,2]
[421107455,1777051854825,-377.0,0.00013699,2]
[421107456,1777051854835,-377.0,0.00013699,2]
[421107457,1777051854845,-377.0,0.00013699,2]
[421107458,1777051854855,-230.0,0.00013699,2]
[421107459,1777051854865,-391.0,0.00013699,2]
[421107460,1777051854876,-377.0,0.00013699,2]
[421107461,1777051854886,-518.0,0.00013699,2]
[421107462,1777051854896,-377.0,0.00013699,2]
[421107463,1777051854906,-405.0,0.00013699,2]
[421107464,1777051854916,-377.0,0.00013699,2]
[421107465,1777051854925,-405.0,0.00013699,2]
[421107466,1777051854935,-377.0,0.00013699,2]
[421107467,1777051854945,-377.0,0.00013699,2]
[421107468,1777051854955,-377.0,0.00013699,2]
[421107469,1777051854966,-433.0,0.00013699,2]
[421107470,1777051854976,-377.0,0.00013699,2]
[421107471,1777051854986,-377.0,0.00013699,2]
[421107472,1777051854996,-377.0,0.00013699,2]
[421107473,1777051855007,-377.0,0.00013699,2]
[421107474,1777051855017,-377.0,0.00013699,2]
[421107475,1777051855027,-377.0,0.00013699,2]
[421107476,1777051855037,-377.0,0.00013699,2]
[421107477,1777051855047,-377.0,0.00013699,2]
[421107478,1777051855057,-503.0,0.00013699,2]
[421107479,1777051855066,-377.0,0.00013699,2]
[421107480,1777051855076,-377.0,0.00013699,2]
[421107481,1777051855086,-377.0,0.00013699,2]
[421107482,1777051855096,-377.0,0.00013699,2]
[421107483,1777051855106,-377.0,0.00013699,2]
[421107484,1777051855115,-377.0,0.00013699,2]
[421107485,1777051855126,-475.0,0.00013699,2]
[421107486,1777051855136,-377.0,0.00013699,2]
[421107487,1777051855146,-377.0,0.00013699,2]
[421107488,1777051855155,-419.0,0.00013699,2]
[421107489,1777051855165,-475.53369921,0.00013699,2]
[421107490,1777051855175,-196.0,0.00013699,2]
[421107491,1777051855185,-377.0,0.00013699,2]
[421107492,1777051855195,-377.0,0.00013699,2]
[421107493,1777051855205,-377.0,0.00013699,2]
[421107494,1777051855215,-377.0,0.00013699,2]
[421107495,1777051855226,-244.0,0.00013699,2]
[421107496,1777051855236,-377.0,0.00013699,2]
[421107497,1777051855247,-295.0,0.00013699,2]
[421107498,1777051855258,-180.13,0.000137,2]
[421107499,1777051855268,-526.88,0.000137,2]
[421107500,1777051855279,-158.0,0.00013764,3]
[421107501,1777051855289,-150.0,0.00013776,2]
[421107502,1777051855299,-150.0,0.00013776,2]
[421107503,1777051855309,-150.0,0.00013776,2]
[421107504,1777051855319,-150.0,0.00013776,2]
[421107505,1777051855331,-150.0,0.00013776,2]
[421107506,1777051855341,-150.0,0.00013776,2]
[421107507,1777051855352,-228.0,0.00013776,2]
[421107508,1777051855363,-1910.18787185,0.00013828,2]
[421107509,1777051855374,-200.0,0.00013828,2]
[421107510,1777051855385,-155.68417321,0.00013828,2]
[421107511,1777051855395,-242.15909246,0.00013828,2]
[421107512,1777051855406,-200.0,0.00013836,2]
[421107513,1777051855417,-500.0,0.00013836,2]
[421107514,1777051855429,-600.0,0.00013836,2]
[421107515,1777051855439,-960.0,0.00013975,2]
[421107516,1777051855450,-335.0,0.00013975,2]
[421107517,1777051855460,-1267.0,0.00013975,2]
[421107518,1777051855471,-1685.0,0.00013975,2]
[421107519,1777051855481,-1761.0,0.00013975,2]
[421107520,1777051855491,-536.0,0.00013975,2]
[421107521,1777051855502,-386.0,0.00013975,2]
[421107522,1777051855512,-1848.0,0.00013975,2]
[421107523,1777051855523,-889.0,0.00013975,2]
[421107524,1777051855533,-744.0,0.00013975,2]
[421107525,1777051855543,-155.0,0.00013999,2]
[421107526,1777051855554,-1500.0,0.00014,2]
[421107527,1777051855565,-8475.0,0.00014001,2]
[421107528,1777051855575,-150.0,0.00014247,21]
[421107529,1777051855586,-150.0,0.00014247,21]
[421107530,1777051855596,-1117.0,0.00014325,2]
[421107531,1777051855606,-183.35,0.00014341,2]
[421107532,1777051855617,-621.78829552,0.00014374,2]
[421107533,1777051855627,-747.8093786,0.00014374,2]
[421107534,1777051855637,-200.0,0.00014376,2]
[421107535,1777051855647,-251.11897888,0.00014376,2]
[421107536,1777051855658,-200.0,0.00014384,2]
[421107537,1777051855668,-151.50921459,0.0001443,21]
[421107538,1777051855679,-150.47551683,0.0001443,21]
[421107539,1777051855689,-184.49208299,0.0001443,21]
[421107540,1777051855699,-503.0,0.00014437,2]
[421107541,1777051855709,-150.0,0.00014443,2]
[421107542,1777051855719,-158.0,0.00014451,3]
[421107543,1777051855729,-4000.0,0.00014578,3]
[421107544,1777051855739,-400.0,0.0001479,2]
[421107545,1777051855751,-400.0,0.0001479,2]
[421107546,1777051855761,-400.0,0.0001479,2]
[421107547,1777051855771,-2027.23,0.000148,2]
[421107548,1777051855781,-1516.6,0.000148,2]
[421107549,1777051855791,-909.96,0.000148,2]
[421107550,1777051855801,-1216.33,0.000148,2]
[421107551,1777051855812,-3838.68,0.000148,2]
[421107552,1777051855822,-1143.87,0.000148,2]
[421107553,1777051855832,-13350.33,0.000148,2]
[421107554,1777051855842,-250.0,0.00014852,2]
[421107555,1777051855852,-250.0,0.00014852,2]
[421107556,1777051855862,-250.0,0.00014852,2]
[421107557,1777051855872,-250.0,0.00014852,2]
[421107558,1777051855882,-250.0,0.00014852,2]
[421107559,1777051855892,-250.0,0.00014852,2]
[421107560,1777051855902,-250.0,0.00014852,2]
[421107561,1777051855912,-250.0,0.00014852,2]
[421107562,1777051855923,-249.0,0.00014852,2]
[421107563,1777051855933,-200.0,0.00014924,2]
[421107564,1777051855943,-260.4103811,0.00014924,2]
[421107565,1777051855952,-200.0,0.00014932,2]
[421107566,1777051855963,-960.0,0.00014975,2]
[421107567,1777051855973,-335.0,0.00014975,2]
[421107568,1777051855983,-1267.0,0.00014975,2]
[421107569,1777051855992,-1685.0,0.00014975,2]
[421107570,1777051856003,-1761.0,0.00014975,2]
[421107571,1777051856012,-536.0,0.00014975,2]
[421107572,1777051856022,-386.0,0.00014975,2]
[421107573,1777051856032,-1848.0,0.00014975,2]
[421107574,1777051856042,-889.0,0.00014975,2]
[421107575,1777051856053,-744.0,0.00014975,2]
[421107576,1777051856063,-2071.18557176,0.00015,2]
[421107577,1777051856073,-426.75517338,0.00015,2]
[421107578,1777051856083,-253.3,0.00015,2]
[421107579,1777051856093,-1503.19769059,0.00015,2]
[421107580,1777051856104,-314.0,0.00015,2]
[421107581,1777051856114,-619.0,0.00015,2]
[421107582,1777051856125,-900.0,0.00015,2]
[421107583,1777051856135,-160.0,0.00015,2]
[421107584,1777051856146,-300.0,0.00015,2]
[421107585,1777051856158,-9621.0,0.00015021,2]
[421107586,1777051856168,-500.0,0.00015027,2]